bitfinex-derivatives/quotes_SOLF0:USTF0_20260102
["timestamp","ask_amount","ask_price","bid_price","bid_amount"]
[1767373449773,0.05250946,131.32,131.3,0.0523272]
[1767373451074,2.22502576,131.39,131.3,2.43853585]
[1767373451265,6.18454986,131.38,131.3,2.38620865]
[1767373451467,6.18454986,131.37,131.3,2.38620865]
[1767373451673,6.18454986,131.36,131.3,2.38620865]
[1767373451862,2.22502576,131.38,131.28,6.8597]
[1767373452061,6.10279975,131.37,131.32,2.44372308]
[1767373452273,2.22502576,131.41,131.33,0.05746439]
[1767373452471,6.09660573,131.4,131.36,0.05013892]
[1767373452674,2.22502576,131.41,131.36,0.05013892]
[1767373453372,13.36476298,131.42,131.36,0.05013892]
[1767373453771,6.03733133,131.41,131.36,0.05013892]
[1767373453987,8.26281492,131.4,131.31,2.38620865]
[1767373454172,2.22502576,131.4,131.31,2.38620865]
[1767373454768,6.04114456,131.39,131.31,2.38620865]
[1767373454964,6.04114456,131.39,131.34,0.050851]
[1767373454965,0.05695388,131.36,131.34,0.050851]
[1767373455470,13.36476298,131.42,131.34,0.050851]
[1767373455677,6.0432993,131.41,131.33,2.38620865]
[1767373455873,13.36476298,131.42,131.33,2.38620865]
[1767373456186,6.04273824,131.41,131.33,2.38620865]
[1767373456375,13.36476298,131.42,131.33,2.38620865]
[1767373456573,13.36476298,131.42,131.36,0.05179556]
[1767373459481,2.22502576,131.41,131.36,0.05179556]
[1767373462478,2.27682132,131.4,131.31,6.8582]
[1767373462673,2.27682132,131.4,131.27,106.7145]
[1767373462674,2.22502576,131.4,131.27,2.38620865]
[1767373463476,0.04918806,131.35,131.32,0.0503016]
[1767373463672,0.05179556,131.35,131.32,0.05553095]
[1767373467379,2.28796595,131.41,131.32,0.05553095]
[1767373467682,2.28796595,131.41,131.31,2.39218219]
[1767373467883,2.28796595,131.41,131.31,9.25038219]
[1767373468281,2.28796595,131.41,131.35,0.05471553]
[1767373470990,13.36476298,131.42,131.35,0.05471553]
[1767373471193,13.36476298,131.42,131.35,2.52501774]
[1767373473185,13.36476298,131.42,131.36,2.47030221]
[1767373473391,13.36476298,131.42,131.38,0.05068075]
[1767373473784,10.86078251,131.42,131.38,0.05068075]
[1767373475889,10.86078251,131.42,131.38,2.52098296]
[1767373476083,10.86078251,131.42,131.38,0.05068075]
[1767373478296,10.86078251,131.42,131.38,2.52098296]
[1767373479191,10.86078251,131.42,131.39,6.8541]
[1767373480292,8.85565537,131.45,131.39,6.8541]
[1767373480489,8.85565537,131.45,131.41,0.04871856]
[1767373480690,153.29636195,131.52,131.41,2.51902077]
[1767373480892,153.29636195,131.52,131.45,0.05790982]
[1767373481291,2.3329066,131.51,131.45,0.05790982]
[1767373481698,2.3329066,131.51,131.4,2.47030221]
[1767373482087,150.96345535,131.52,131.38,4.2930701]
[1767373482088,2.3329066,131.49,131.38,4.2930701]
[1767373482590,2.3329066,131.49,131.39,6.854]
[1767373482797,0.05644366,131.45,131.42,0.05506433]
[1767373483785,2.38935026,131.45,131.37,2.47030221]
[1767373483990,2.3329066,131.45,131.37,2.47030221]
[1767373484697,0.05630267,131.42,131.4,0.05562396]
[1767373485393,2.3329066,131.48,131.4,0.05562396]
[1767373485592,2.3329066,131.48,131.39,109.08910221]
[1767373486503,2.3329066,131.48,131.41,6.8529]
[1767373486693,0.05520532,131.46,131.43,0.04852318]
[1767373489302,0.05520532,131.46,131.39,2.47030221]
[1767373490301,0.05520532,131.46,131.41,0.05787579]
[1767373490704,2.38811192,131.46,131.41,0.05787579]
[1767373491899,2.38811192,131.46,131.36,6.8556]
[1767373492104,2.3329066,131.46,131.36,6.8556]
[1767373492999,0.05545228,131.42,131.36,6.8556]
[1767373493709,2.38835888,131.42,131.34,6.8566]
[1767373493912,0.0552459,131.39,131.37,0.05298627]
[1767373496513,2.3329066,131.45,131.37,0.05298627]
[1767373496714,2.3329066,131.45,131.36,6.8558]
[1767373497700,0.05708076,131.42,131.39,0.05078726]
[1767373500315,2.52970295,131.42,131.33,6.8569]
[1767373500515,2.47262219,131.42,131.33,6.8569]
[1767373500918,2.47262219,131.42,131.34,2.43912986]
[1767373501308,2.47262219,131.45,131.37,0.05293639]
[1767373501508,2.47262219,131.45,131.36,2.43912986]
[1767373502009,4.2930701,131.5,131.37,2.43912986]
[1767373502010,2.47262219,131.47,131.37,2.43912986]
[1767373502203,2.47262219,131.47,131.39,6.8542]
[1767373502410,0.05114533,131.44,131.42,0.04871953]
[1767373503318,92.39262219,131.5,131.42,0.04871953]
[1767373503511,2.47262219,131.49,131.4,2.43912986]
[1767373504114,2.47262219,131.49,131.42,6.8526]
[1767373504313,0.05280392,131.47,131.44,0.05157859]
[1767373505622,150.96345535,131.52,131.44,2.49070845]
[1767373505813,150.96345535,131.52,131.44,2.43912986]
[1767373506316,153.43607754,131.52,131.44,2.43912986]
[1767373506514,0.05273002,131.49,131.47,0.05825546]
[1767373508219,2.47262219,131.57,131.49,2.43912986]
[1767373509020,2.47262219,131.57,131.49,9.28792986]
[1767373509211,2.47262219,131.57,131.52,0.04885569]
[1767373509620,2.47262219,131.57,131.46,2.43912986]
[1767373509818,2.47262219,131.56,131.43,2.43912986]
[1767373510123,2.47262219,131.56,131.43,92.35912986]
[1767373510332,2.47262219,131.56,131.44,2.43912986]
[1767373510622,0.05099044,131.51,131.49,0.05073227]
[1767373510809,0.05286223,131.51,131.49,0.05441262]
[1767373512616,2.47262219,131.57,131.49,0.05441262]
[1767373512821,2.47262219,131.57,131.48,2.43912986]
[1767373513927,2.47262219,131.57,131.51,0.05198415]
[1767373515020,2.47262219,131.62,131.51,2.49111401]
[1767373515218,2.47262219,131.62,131.55,0.04891896]
[1767373518024,92.35262219,131.62,131.55,0.04891896]
[1767373518626,2.47262219,131.62,131.55,0.04891896]
[1767373520223,8.36809026,131.63,131.55,2.48804882]
[1767373520526,2.47262219,131.65,131.58,0.04963576]
[1767373521314,92.33262219,131.65,131.58,0.04963576]
[1767373521715,2.47262219,131.68,131.59,6.843]
[1767373521925,2.47262219,131.68,131.62,0.05331818]
[1767373524413,4.2930701,131.67,131.56,2.43912986]
[1767373524617,2.47262219,131.63,131.53,2.43912986]
[1767373524818,2.47262219,131.63,131.55,6.845]
[1767373525022,2.47262219,131.63,131.55,2.43912986]
[1767373525420,2.47262219,131.63,131.55,9.28412986]
[1767373525625,0.05316243,131.6,131.58,0.05694962]
[1767373526127,2.47262219,131.66,131.58,0.05694962]
[1767373526430,2.47262219,131.66,131.55,2.43912986]
[1767373526625,2.47262219,131.66,131.58,6.8435]
[1767373527134,2.46290278,131.69,131.61,6.89041619]
[1767373527335,2.46290278,131.69,131.64,0.05669328]
[1767373528033,2.46290278,131.68,131.59,9.39209012]
[1767373528926,0.05854762,131.65,131.62,0.05751155]
[1767373530421,2.70246873,131.65,131.57,6.8439]
[1767373530627,2.64392111,131.65,131.53,108.99925192]
[1767373530826,2.64392111,131.64,131.53,108.99925192]
[1767373531023,2.64392111,131.64,131.55,6.8448]
[1767373531428,2.69781674,131.61,131.51,6.79882202]
[1767373531629,2.64392111,131.61,131.51,6.79882202]
[1767373532041,2.64392111,131.61,131.52,2.50575192]
[1767373532243,6.93699121,131.64,131.52,2.50575192]
[1767373532425,0.0561409,131.59,131.57,0.05500174]
[1767373532621,0.04806836,131.59,131.57,0.05500174]
[1767373532934,0.04806836,131.59,131.52,2.50575192]
[1767373533934,0.04806836,131.59,131.54,0.05716662]
[1767373534531,2.64392111,131.64,131.55,2.50575192]
[1767373535232,2.64392111,131.63,131.53,6.8459]
[1767373535538,0.05738669,131.59,131.57,0.04856125]
[1767373535741,2.64392111,131.63,131.57,0.04856125]
[1767373536642,0.05043823,131.61,131.57,0.04856125]
[1767373536832,2.64392111,131.66,131.58,2.5636721]
[1767373537032,2.64392111,131.69,131.58,2.50575192]
[1767373537955,0.05736292,131.65,131.62,0.0581637]
[1767373538141,0.05736292,131.65,131.62,0.04970526]
[1767373540739,2.70128403,131.65,131.56,2.50575192]
[1767373540940,2.64392111,131.65,131.56,2.50575192]
[1767373541741,0.05378311,131.62,131.59,0.05188462]
[1767373542441,2.69770422,131.62,131.53,2.50575192]
[1767373542634,2.64392111,131.62,131.53,2.50575192]
[1767373543345,0.04931081,131.59,131.56,0.04870062]
[1767373548350,89.8,131.65,131.56,0.04870062]
[1767373548351,2.64392111,131.65,131.56,2.55445254]
[1767373548554,2.64392111,131.65,131.56,2.50575192]
[1767373548743,2.64392111,131.65,131.57,2.50575192]
[1767373549248,0.05696849,131.62,131.6,0.05266429]
[1767373551744,0.05696849,131.62,131.56,6.8447]
[1767373552651,0.05696849,131.62,131.55,6.8449]
[1767373552848,0.04963166,131.6,131.57,0.05852713]
[1767373553051,0.04988538,131.6,131.57,0.0567398]
[1767373555356,2.69380649,131.6,131.52,6.8463]
[1767373555657,2.64392111,131.6,131.52,2.50575192]
[1767373556341,2.64392111,131.6,131.55,0.04941878]
[1767373556342,0.05428947,131.57,131.55,0.04941878]
[1767373557352,2.64392111,131.63,131.55,9.4003707]
[1767373557559,2.64392111,131.63,131.55,9.35095192]
[1767373558345,0.04816203,131.6,131.58,0.05634774]
[1767373560360,2.77232045,131.6,131.51,2.72652593]
[1767373560557,2.72415842,131.6,131.51,41.72652593]
[1767373560766,2.72415842,131.6,131.51,2.72652593]
[1767373561359,0.05701179,131.57,131.54,0.05637315]
[1767373562566,2.72415842,131.63,131.54,2.78289908]
[1767373562768,2.72415842,131.63,131.54,2.72652593]
[1767373563464,0.05592438,131.6,131.57,0.04999461]
[1767373565157,6.95515372,131.68,131.57,0.04999461]
[1767373565158,2.72415842,131.66,131.57,9.62062054]
[1767373565464,2.72415842,131.66,131.57,2.72652593]
[1767373566363,0.05465577,131.63,131.6,0.05306244]
[1767373566566,2.72415842,131.69,131.6,2.72652593]
[1767373567464,0.04836255,131.66,131.63,0.05127494]
[1767373568665,2.72415842,131.72,131.63,2.77780087]
[1767373568869,2.72415842,131.75,131.63,2.72652593]
[1767373569261,2.72415842,131.75,131.66,9.56592593]
[1767373569769,2.7453336,131.72,131.63,2.72652593]
[1767373569968,2.72415842,131.72,131.63,2.72652593]
[1767373570361,2.72415842,131.72,131.6,2.72652593]
[1767373570761,0.0523557,131.67,131.65,0.0497907]
[1767373570960,0.05581166,131.67,131.65,0.0497907]
[1767373571157,2.72415842,131.74,131.65,0.0497907]
[1767373571362,2.72415842,131.74,131.64,2.72652593]
[1767373571969,11.36345499,131.77,131.66,2.72652593]
[1767373572269,2.72415842,131.76,131.7,0.05279286]
[1767373573666,2.72415842,131.76,131.63,9.56732593]
[1767373573871,2.72415842,131.76,131.64,2.72652593]
[1767373574273,2.72415842,131.76,131.63,6.8408]
[1767373574476,2.72415842,131.74,131.62,2.72652593]
[1767373574768,2.77429145,131.71,131.62,2.72652593]
[1767373574974,2.72415842,131.71,131.62,2.72652593]
[1767373575877,0.05716833,131.68,131.65,0.05383603]
[1767373578265,2.72415842,131.72,131.65,0.05383603]
[1767373578578,2.72415842,131.75,131.65,9.62026196]
[1767373578780,2.72415842,131.75,131.65,9.56642593]
[1767373579278,0.04799649,131.71,131.69,0.05315733]
[1767373580077,2.72415842,131.75,131.69,0.05315733]
[1767373581174,8.63929657,131.77,131.69,2.77968326]
[1767373581376,2.72415842,131.76,131.72,0.05812545]
[1767373581577,2.72415842,131.76,131.66,2.72652593]
[1767373582679,0.0492032,131.72,131.7,0.05074479]
[1767373583266,2.77336162,131.72,131.63,2.72652593]
[1767373583581,2.72415842,131.72,131.63,2.72652593]
[1767373584464,2.72415842,131.72,131.66,0.05809401]
[1767373584465,0.05582718,131.69,131.66,0.05809401]
[1767373584679,0.04941777,131.69,131.66,0.05809401]
[1767373585869,2.72415842,131.76,131.66,2.78461994]
[1767373586183,2.72415842,131.76,131.66,2.72652593]
[1767373586873,0.05500117,131.72,131.7,0.05416648]
[1767373592586,0.05500117,131.72,131.64,6.8401]
[1767373592886,2.55010883,131.74,131.64,6.8401]
[1767373593289,2.55010883,131.74,131.64,9.39689857]
[1767373593476,0.05846663,131.7,131.68,0.05062153]
[1767373593677,2.55010883,131.72,131.64,2.55679857]
[1767373593879,2.55010883,131.72,131.62,6.8412]
[1767373594078,2.55010883,131.72,131.61,2.55679857]
[1767373594482,2.55010883,131.71,131.61,2.55679857]
[1767373594681,0.05626688,131.68,131.65,0.05343764]
[1767373597684,2.73647157,131.68,131.58,9.46872141]
[1767373597994,2.68020469,131.66,131.58,2.62542141]
[1767373598294,92.42020469,131.66,131.58,2.62542141]
[1767373598492,2.68020469,131.65,131.55,2.62542141]
[1767373598697,0.05285729,131.61,131.59,0.04941667]
[1767373600704,2.73306198,131.61,131.51,2.62542141]
[1767373600890,2.68020469,131.58,131.48,2.62542141]
[1767373601088,2.68020469,131.57,131.48,2.62542141]
[1767373601799,0.05068961,131.54,131.51,0.05353973]
[1767373602893,0.05068961,131.54,131.45,2.62542141]
[1767373603090,89.76,131.57,131.45,2.62542141]
[1767373603293,92.44020469,131.57,131.45,2.62542141]
[1767373603802,92.44020469,131.57,131.47,2.62542141]
[1767373604005,0.04797835,131.52,131.5,0.0519724]
[1767373604194,0.04942662,131.52,131.5,0.0519724]
[1767373604703,2.68020469,131.57,131.5,0.0519724]
[1767373604897,2.68020469,131.57,131.44,2.62542141]
[1767373604898,2.68020469,131.54,131.44,2.62542141]
[1767373605097,2.68020469,131.52,131.44,2.62542141]
[1767373605995,0.04836934,131.49,131.47,0.05712321]
[1767373606192,0.04836934,131.49,131.41,2.62542141]
[1767373606400,2.68020469,131.52,131.42,2.62542141]
[1767373606401,28.32020469,131.52,131.42,2.62542141]
[1767373606596,4.28011366,131.51,131.42,2.62542141]
[1767373606796,92.46020469,131.5,131.42,2.62542141]
[1767373607209,0.05685152,131.47,131.45,0.05214818]
[1767373608505,2.73705621,131.47,131.39,13.36476298]
[1767373608708,2.68020469,131.45,131.39,13.36476298]
[1767373609010,89.8,131.47,131.39,13.36476298]
[1767373609501,0.05392135,131.44,131.42,0.05442979]
[1767373609704,89.8,131.47,131.42,0.05442979]
[1767373610006,89.8,131.47,131.39,13.36476298]
[1767373610402,92.48020469,131.47,131.39,13.36476298]
[1767373610802,2.68020469,131.46,131.42,0.05766705]
[1767373611006,2.68020469,131.46,131.39,13.36476298]
[1767373611007,2.7349023,131.44,131.39,13.36476298]
[1767373611199,2.7349023,131.44,131.35,2.62542141]
[1767373611413,2.68020469,131.44,131.35,2.62542141]
[1767373611711,2.68020469,131.47,131.39,2.62542141]
[1767373611908,0.05735757,131.44,131.42,0.05415045]
[1767373613614,0.05735757,131.44,131.39,2.62542141]
[1767373613907,0.05735757,131.44,131.37,2.62542141]
[1767373614108,92.52020469,131.47,131.37,2.62542141]
[1767373614109,2.68020469,131.46,131.37,2.62542141]
[1767373614511,2.68020469,131.45,131.34,2.62542141]
[1767373614813,2.68020469,131.48,131.38,2.67948985]
[1767373615013,92.52020469,131.48,131.38,2.62542141]
[1767373615512,6.8496,131.47,131.38,2.62542141]
[1767373615711,6.8496,131.47,131.41,0.05755166]
[1767373615913,0.05834611,131.44,131.41,0.05755166]
[1767373616318,6.8486,131.49,131.41,2.68297307]
[1767373616518,89.86,131.5,131.41,2.62542141]
[1767373617401,0.05308063,131.47,131.44,0.05702219]
[1767373621716,92.6593124,131.54,131.44,2.87064079]
[1767373621916,92.6593124,131.54,131.44,2.8136186]
[1767373622512,2.7793124,131.57,131.45,2.8136186]
[1767373622710,0.0570301,131.52,131.5,0.05825407]
[1767373622911,0.05404757,131.52,131.47,2.8136186]
[1767373623919,0.05404757,131.52,131.48,0.05368427]
[1767373624120,0.05424998,131.51,131.48,0.05368427]
[1767373625506,6.90174998,131.51,131.48,0.05368427]
[1767373625721,2.83356238,131.51,131.41,2.8136186]
[1767373625914,89.86,131.5,131.41,2.8136186]
[1767373626114,89.86,131.5,131.42,2.8136186]
[1767373626517,2.7793124,131.54,131.43,2.8136186]
[1767373626817,89.86,131.52,131.45,2.86325812]
[1767373627124,6.8464,131.53,131.45,9.6639186]
[1767373627316,96.7064,131.53,131.45,9.6639186]
[1767373627712,0.05405794,131.5,131.48,0.05562954]
[1767373628824,0.05405794,131.5,131.45,41.8136186]
[1767373629024,0.05405794,131.5,131.45,2.8136186]
[1767373629418,0.05405794,131.5,131.42,2.8136186]
[1767373629624,2.7793124,131.51,131.42,2.8136186]
[1767373629921,0.05519192,131.48,131.45,0.05750864]
[1767373630714,89.86,131.51,131.45,0.05750864]
[1767373631714,0.05375037,131.49,131.45,0.05750864]
[1767373635025,89.86,131.53,131.45,2.87112724]
[1767373635225,89.86,131.53,131.45,2.8136186]
[1767373635424,7.05942606,131.56,131.45,2.8136186]
[1767373635626,96.7054,131.55,131.47,6.8493]
[1767373636018,0.05629626,131.52,131.5,0.05175018]
[1767373636218,0.05629626,131.52,131.45,2.8136186]
[1767373636815,0.05629626,131.52,131.46,6.8498]
[1767373637219,0.05629626,131.52,131.46,9.6634186]
[1767373637420,0.05629626,131.52,131.48,0.05509085]
[1767373639230,106.4688,131.57,131.48,0.05509085]
[1767373639231,2.7793124,131.59,131.5,6.8478]
[1767373639529,92.6393124,131.59,131.49,106.5293]
[1767373639733,2.7793124,131.59,131.48,106.5358]
[1767373640225,0.05426079,131.55,131.52,0.05300491]
[1767373643533,92.6393124,131.59,131.52,0.05300491]
[1767373643534,2.7793124,131.62,131.52,0.05300491]
[1767373643739,2.7793124,131.6,131.5,39.0]
[1767373644038,2.7793124,131.6,131.48,106.5358]
[1767373644039,2.7793124,131.58,131.45,110.83981366]
[1767373644332,2.7793124,131.56,131.44,106.5658]
[1767373644527,0.04848578,131.51,131.49,0.05022476]
[1767373644728,0.05062321,131.51,131.49,0.04915486]
[1767373645629,0.05062321,131.51,131.43,196.4381]
[1767373645835,2.7793124,131.55,131.43,196.4381]
[1767373646133,2.7793124,131.53,131.43,196.4381]
[1767373646335,2.7793124,131.53,131.44,6.8507]
[1767373646336,9.6257124,131.53,131.44,6.8507]
[1767373646627,9.6257124,131.53,131.47,0.05472862]
[1767373646832,0.05179258,131.5,131.47,0.05472862]
[1767373647540,0.05179258,131.5,131.44,6.8507]
[1767373647541,2.83110498,131.5,131.39,106.6073]
[1767373647737,2.7793124,131.5,131.39,106.6073]
[1767373648438,9.6273124,131.5,131.41,6.8523]
[1767373648639,0.04817999,131.47,131.44,0.04871456]
[1767373649728,0.04817999,131.47,131.39,6.8532]
[1767373649929,9.75320681,131.48,131.39,6.8532]
[1767373650731,0.0520968,131.45,131.42,0.05363104]
[1767373651738,0.0520968,131.45,131.35,106.641]
[1767373651940,0.0520968,131.45,131.34,200.78691366]
[1767373651941,2.90410681,131.46,131.34,89.86]
[1767373652133,2.90410681,131.43,131.34,96.7158]
[1767373652643,0.04861497,131.4,131.37,0.0531299]
[1767373654642,0.04861497,131.4,131.32,6.8569]
[1767373654832,92.76410681,131.41,131.32,6.8569]
[1767373655041,99.61680681,131.41,131.32,6.8569]
[1767373655233,2.90410681,131.4,131.32,6.8569]
[1767373655442,0.04935336,131.37,131.35,0.05607198]
[1767373656235,14.03592047,131.43,131.35,0.05607198]
[1767373656431,92.78410681,131.42,131.32,106.6656]
[1767373656633,2.90410681,131.42,131.33,106.66]
[1767373657148,9.75630681,131.42,131.33,6.8566]
[1767373657337,0.04824841,131.39,131.36,0.05364557]
[1767373661749,0.04824841,131.39,131.3,106.6789]
[1767373661750,2.97239428,131.39,131.3,6.8579]
[1767373661946,2.92414587,131.45,131.32,106.6649]
[1767373662148,89.9,131.44,131.33,106.6596]
[1767373662346,92.82414587,131.44,131.33,106.6596]
[1767373662757,2.92414587,131.44,131.37,0.0583497]
[1767373663258,9.77394587,131.47,131.37,0.0583497]
[1767373663558,9.77394587,131.47,131.36,106.6358]
[1767373663760,9.77394587,131.47,131.4,0.05798238]
[1767373663951,0.05568823,131.43,131.4,0.05798238]
[1767373666454,2.92414587,131.47,131.4,0.05798238]
[1767373666763,9.77364587,131.47,131.4,0.05798238]
[1767373666949,2.92414587,131.47,131.4,0.05798238]
[1767373667351,0.05838207,131.45,131.4,0.05798238]
[1767373667555,0.05838207,131.45,131.4,6.91088238]
[1767373669862,0.05838207,131.45,131.4,0.05798238]
[1767373672463,0.05838207,131.45,131.4,6.91088238]
[1767373672666,0.05838207,131.45,131.4,0.05798238]
[1767373673070,113.49003306,131.52,131.4,0.05798238]
[1767373673071,2.92414587,131.5,131.4,0.05798238]
[1767373673258,2.92414587,131.5,131.4,106.5989]
[1767373674062,0.05600123,131.46,131.44,0.05844384]
[1767373674566,2.92414587,131.5,131.44,0.05844384]
[1767373675669,0.05746063,131.48,131.44,0.05844384]
[1767373676773,0.05746063,131.48,131.44,6.90934384]
[1767373676972,2.9816065,131.48,131.44,0.05844384]
[1767373677664,9.8306065,131.48,131.44,0.05844384]
[1767373677870,2.92414587,131.47,131.4,6.8525]
[1767373678261,2.92414587,131.47,131.41,6.8525]
[1767373678770,0.05764216,131.45,131.43,0.05544863]
[1767373679972,6.8488,131.49,131.43,0.05544863]
[1767373680375,10.00243207,131.49,131.43,0.05544863]
[1767373680577,3.15363207,131.49,131.43,6.90654863]
[1767373680972,0.05384762,131.47,131.43,0.05544863]
[1767373682481,3.15363207,131.46,131.4,39.0]
[1767373682981,3.15363207,131.46,131.41,6.8525]
[1767373683176,3.15363207,131.49,131.4,39.0]
[1767373683381,0.05288369,131.46,131.43,0.049253]
[1767373684381,0.05288369,131.46,131.43,6.900653]
[1767373684681,3.15363207,131.52,131.43,0.049253]
[1767373684985,3.15363207,131.52,131.46,6.8498]
[1767373685581,10.00053207,131.52,131.43,39.0]
[1767373685784,0.05356753,131.5,131.48,0.05520098]
[1767373687773,93.03363207,131.55,131.48,0.05520098]
[1767373687774,3.15363207,131.55,131.48,0.05520098]
[1767373688582,6.8457,131.54,131.48,0.05520098]
[1767373688783,0.05733995,131.52,131.48,0.05520098]
[1767373690679,3.15363207,131.57,131.48,0.05520098]
[1767373690988,3.15363207,131.57,131.46,106.5521]
[1767373691891,3.15363207,131.57,131.5,6.89872545]
[1767373692885,0.04861064,131.55,131.5,6.89872545]
[1767373693184,0.04861064,131.55,131.51,6.8469]
[1767373693382,0.04861064,131.55,131.5,0.05102545]
[1767373693587,0.04861064,131.55,131.5,6.89882545]
[1767373694890,0.04861064,131.55,131.5,0.05102545]
[1767373696193,0.04861064,131.55,131.5,6.89872545]
[1767373697493,0.04861064,131.55,131.5,45.89872545]
[1767373697689,0.04861064,131.55,131.51,6.8471]
[1767373697889,0.04861064,131.55,131.5,39.05102545]
[1767373698090,93.01363207,131.6,131.5,145.56892545]
[1767373698294,3.15363207,131.6,131.5,145.5179]
[1767373698494,9.99623207,131.6,131.53,6.8462]
[1767373699188,3.15363207,131.6,131.55,0.05611411]
[1767373699390,0.05316765,131.58,131.55,0.05611411]
[1767373700187,89.84,131.62,131.55,0.05611411]
[1767373700590,92.99363207,131.62,131.55,0.05611411]
[1767373700798,92.99363207,131.62,131.55,6.90131411]
[1767373701097,92.99363207,131.62,131.55,0.05611411]
[1767373701303,0.05153019,131.6,131.55,6.90111411]
[1767373702300,0.05153019,131.6,131.55,0.05611411]
[1767373703291,3.20516226,131.6,131.55,0.05611411]
[1767373704304,0.05153019,131.6,131.55,0.05611411]
[1767373705197,0.05153019,131.6,131.55,6.90111411]
[1767373705693,0.05153019,131.6,131.55,0.05611411]
[1767373706094,0.05153019,131.6,131.55,39.05611411]
[1767373706502,3.15363207,131.66,131.56,106.4734]
[1767373706705,3.15363207,131.66,131.57,106.4644]
[1767373706998,3.15363207,131.66,131.56,128.84]
[1767373707412,0.05253203,131.62,131.6,0.05814187]
[1767373707711,0.05253203,131.62,131.56,39.0]
[1767373707912,0.05253203,131.62,131.53,235.3345]
[1767373708215,3.24840091,131.63,131.53,235.3345]
[1767373708510,3.24840091,131.66,131.57,0.05145789]
[1767373708715,3.24840091,131.66,131.56,145.4735]
[1767373708897,3.24840091,131.66,131.6,6.8426]
[1767373709804,3.24840091,131.66,131.62,0.05086418]
[1767373709805,0.05097019,131.64,131.62,0.05086418]
[1767373710509,94.37563398,131.67,131.62,0.05086418]
[1767373711009,97.76145962,131.67,131.62,0.05086418]
[1767373711908,97.76145962,131.67,131.62,6.89236418]
[1767373713104,94.37563398,131.67,131.62,6.89236418]
[1767373713415,3.38582564,131.7,131.62,6.89236418]
[1767373713710,3.38582564,131.7,131.65,0.04940112]
[1767373716807,10.22322564,131.7,131.65,0.04940112]
[1767373717117,3.38582564,131.69,131.65,0.04940112]
[1767373718110,10.22382564,131.69,131.65,0.04940112]
[1767373719216,3.38582564,131.69,131.65,0.04940112]
[1767373720007,96.5974,131.71,131.65,0.04940112]
[1767373720214,102.1126593,131.72,131.65,0.04940112]
[1767373720418,102.1126593,131.72,131.65,6.88930112]
[1767373720917,8.96683366,131.72,131.65,0.04940112]
[1767373721307,15.80323366,131.72,131.65,0.04940112]
[1767373721723,8.96683366,131.72,131.65,0.04940112]
[1767373722821,8.96683366,131.72,131.66,6.8395]
[1767373723122,8.96683366,131.72,131.68,0.05505243]
[1767373723715,3.38582564,131.74,131.68,0.05505243]
[1767373724614,1.86151961,131.73,131.68,0.05505243]
[1767373724809,12.08204525,131.76,131.68,1.91657204]
[1767373725019,3.38582564,131.75,131.71,0.05548094]
[1767373725919,98.45621961,131.76,131.65,40.86151961]
[1767373725920,3.38582564,131.73,131.65,40.86151961]
[1767373726111,3.38582564,131.72,131.65,39.0]
[1767373726323,5.24734525,131.71,131.65,39.0]
[1767373726718,5.24734525,131.71,131.65,45.84]
[1767373726918,0.05046246,131.69,131.67,0.04944123]
[1767373730633,101.82304525,131.74,131.67,0.04944123]
[1767373730831,101.82304525,131.74,131.65,1.86151961]
[1767373731328,3.38582564,131.74,131.65,108.25941961]
[1767373731512,3.38582564,131.74,131.65,106.3979]
[1767373731714,3.38582564,131.74,131.68,0.05376045]
[1767373732823,3.38582564,131.74,131.68,6.89216045]
[1767373733817,3.38582564,131.74,131.69,6.8379]
[1767373734219,5.24734525,131.76,131.69,6.8379]
[1767373734415,3.38582564,131.76,131.71,0.05014081]
[1767373735514,5.24734525,131.79,131.71,0.05014081]
[1767373735715,5.24734525,131.79,131.74,0.05782392]
[1767373736032,16.75058862,131.81,131.74,6.89292392]
[1767373736323,13.36476298,131.81,131.75,1.86151961]
[1767373736514,13.36476298,131.81,131.77,0.05787585]
[1767373737425,13.22803552,131.81,131.77,0.05787585]
[1767373737635,13.22803552,131.81,131.77,6.89137585]
[1767373738334,13.22803552,131.81,131.77,0.05787585]
[1767373739529,3.47527294,131.8,131.74,89.72]
[1767373739723,13.22803552,131.81,131.74,89.72]
[1767373740121,16.70330846,131.81,131.74,89.72]
[1767373740728,0.05196418,131.79,131.76,0.05836806]
[1767373741132,13.22803552,131.81,131.77,6.8335]
[1767373742228,0.02079191,131.8,131.77,6.8335]
[1767373743130,0.02079191,131.8,131.76,89.75836806]
[1767373743336,0.02079191,131.8,131.76,0.05836806]
[1767373743537,0.02079191,131.8,131.77,6.8335]
[1767373743725,12.1128732,131.81,131.76,89.75836806]
[1767373743930,3.47527294,131.87,131.78,106.2947]
[1767373744241,3.47527294,131.87,131.79,89.7]
[1767373744739,3.47527294,131.87,131.82,0.05426483]
[1767373745734,3.47527294,131.87,131.79,89.7]
[1767373746640,0.05426483,131.84,131.82,0.05500172]
[1767373748746,0.05426483,131.84,131.79,96.5125]
[1767373749240,3.52953777,131.84,131.79,89.68]
[1767373749837,0.05426483,131.84,131.8,0.05491397]